bitfinex-derivatives/quotes_ETHF0:USTF0_20250524
["timestamp","ask_amount","ask_price","bid_price","bid_amount"]
[1748124678911,4.57355075,2531.4,2531.3,1.34797687]
[1748124679113,2.21779827,2531.4,2531.3,0.55817687]
[1748124679417,2.21779827,2531.4,2531.3,2.76667687]
[1748124679812,0.00592827,2531.4,2531.3,2.76667687]
[1748124680416,0.00592827,2531.4,2531.3,2.76669771]
[1748124682316,0.00592827,2531.4,2531.3,2.76670497]
[1748124684115,0.00592827,2531.4,2531.3,7.76670497]
[1748124684418,0.00592827,2531.4,2531.3,2.76670497]
[1748124684917,0.00592827,2531.4,2531.3,17.50600497]
[1748124685114,0.00592827,2531.4,2531.3,18.85690497]
[1748124686016,0.00592827,2531.4,2531.3,18.2987]
[1748124686211,0.79569827,2531.4,2531.3,18.85695053]
[1748124687320,0.00592827,2531.4,2531.3,18.85695053]
[1748124688010,0.00592827,2531.4,2531.3,18.85698006]
[1748124688312,0.79569827,2531.4,2531.3,18.85698006]
[1748124689911,0.00592827,2531.4,2531.3,18.8570136]
[1748124691721,0.00592827,2531.4,2531.3,18.85690159]
[1748124693519,2.35575248,2531.7,2531.6,0.7897]
[1748124693719,3.1113622,2532.0,2531.9,0.78961]
[1748124694018,3.1113622,2532.0,2531.9,20.713685]
[1748124694823,3.1113622,2532.0,2531.9,20.71347737]
[1748124695024,0.78955,2532.1,2532.0,0.78956]
[1748124695216,0.78955,2532.1,2532.0,0.55806737]
[1748124695415,0.78973,2531.5,2531.4,16.8292]
[1748124695618,0.78973,2531.5,2531.4,17.24643151]
[1748124699130,3.99753,2531.5,2531.4,16.45666151]
[1748124699331,3.99753,2531.5,2531.0,19.3648]
[1748124699332,0.78986,2531.1,2531.0,19.3648]
[1748124699520,0.78986,2531.1,2531.0,19.6647471]
[1748124700225,0.78986,2531.1,2531.0,20.4546371]
[1748124700625,0.78986,2531.1,2531.0,19.6647471]
[1748124701125,0.78986,2531.1,2531.0,20.44733893]
[1748124703119,1.3154,2531.2,2531.1,0.78986]
[1748124703319,19.0904,2531.2,2531.1,0.78986]
[1748124703514,6.3191622,2531.5,2531.3,0.78979]
[1748124703727,0.7898,2531.3,2531.2,1.50041]
[1748124704024,0.7898,2531.3,2531.2,1.79293687]
[1748124704322,0.7898,2531.3,2531.2,1.00312609]
[1748124704526,0.7898,2531.3,2531.2,0.29252609]
[1748124704716,0.7898,2531.3,2531.2,1.07545108]
[1748124705125,0.7898,2531.3,2531.2,0.28562108]
[1748124706227,0.7898,2531.3,2531.2,1.07545108]
[1748124706724,0.7898,2531.3,2531.2,1.07516251]
[1748124708431,0.7898,2531.3,2531.2,0.28533251]
[1748124708624,0.78986,2531.1,2531.0,19.3648]
[1748124708824,0.78986,2531.1,2531.0,19.65013217]
[1748124709025,0.78986,2531.1,2531.0,20.44002217]
[1748124709225,20.9828,2531.5,2531.0,19.65013217]
[1748124709226,0.7898,2531.3,2531.0,19.65013217]
[1748124709422,0.7898,2531.3,2531.2,0.78981]
[1748124709624,0.7898,2531.3,2531.2,1.07514217]
[1748124709921,2.21028,2531.4,2531.3,0.7898]
[1748124710125,0.7898,2531.3,2531.2,1.45041]
[1748124710429,2.2103,2531.3,2531.2,0.94591105]
[1748124711526,2.2103,2531.3,2531.2,1.73574105]
[1748124712429,2.2103,2531.3,2531.2,1.73573449]
[1748124713631,2.2103,2531.3,2531.2,0.94590449]
[1748124714224,2.2103,2531.3,2531.2,1.73573449]
[1748124716631,1.4205,2531.3,2531.2,1.73573449]
[1748124717230,2.2103,2531.3,2531.2,1.73573449]
[1748124719832,2.2103,2531.3,2531.2,1.73572286]
[1748124720431,0.78979,2531.4,2531.3,0.78978]
[1748124720633,0.78979,2531.4,2531.3,2.44337286]
[1748124721333,2.08129,2531.4,2531.3,2.44337286]
[1748124721634,2.08129,2531.4,2531.3,2.44341788]
[1748124722634,0.78986,2531.1,2531.0,3.2078]
[1748124722937,0.78986,2531.1,2531.0,20.43605666]
[1748124723138,0.78986,2531.1,2531.0,17.22825666]
[1748124723529,0.78986,2531.1,2531.0,17.22829647]
[1748124723733,0.78985,2531.2,2531.1,0.78985]
[1748124723931,0.78985,2531.2,2531.1,1.07525647]
[1748124725234,3.64256182,2531.4,2531.1,0.28540647]
[1748124725438,0.7898,2531.3,2531.2,0.28540647]
[1748124725638,2.1876,2531.3,2531.2,0.28540647]
[1748124726342,2.1876,2531.3,2531.2,1.07523647]
[1748124727341,2.1876,2531.3,2531.2,1.0755136]
[1748124727642,2.35106182,2531.4,2531.3,0.7898]
[1748124727846,2.35106182,2531.4,2531.3,2.41535314]
[1748124728034,5.39406,2531.5,2531.4,0.78977]
[1748124728230,3.1113622,2531.6,2531.5,0.78973]
[1748124728430,3.1113622,2531.6,2531.5,1.64527385]
[1748124728638,2.3557515,2531.7,2531.6,0.7897]
[1748124728838,2.3557515,2531.7,2531.6,4.85304385]
[1748124729040,2.3557515,2531.7,2531.6,9.85304385]
[1748124729236,2.3557515,2531.7,2531.6,9.85367418]
[1748124729535,3.1113622,2532.0,2531.9,0.78961]
[1748124729731,3.1113622,2532.0,2531.9,21.00558418]
[1748124729936,0.00592827,2532.2,2532.1,0.78955]
[1748124730136,0.00592827,2532.2,2532.1,1.64572418]
[1748124731229,0.00592827,2532.2,2532.1,1.64387713]
[1748124732939,0.00592827,2532.2,2532.1,0.78955]
[1748124733136,0.00592827,2532.2,2532.1,1.64289232]
[1748124733647,3.8814792,2533.2,2532.6,0.78939]
[1748124733648,1.2883,2532.7,2532.6,0.78939]
[1748124733839,1.2883,2532.7,2532.6,16.71864344]
[1748124734039,1.2883,2532.7,2532.6,17.50803344]
[1748124736746,1.2883,2532.7,2532.6,17.50688524]
[1748124737843,2.07766,2532.7,2532.6,17.50688524]
[1748124738045,2.07766,2532.7,2532.6,16.71749524]
[1748124738745,2.07766,2532.7,2532.6,16.71714622]
[1748124738946,2.07766,2532.7,2532.6,17.50653622]
[1748124739148,2.07766,2532.7,2532.6,16.71714622]
[1748124740750,2.07766,2532.7,2532.6,16.71662585]
[1748124741047,2.07766,2532.7,2532.6,17.50601585]
[1748124742145,1.2883,2532.7,2532.6,17.50601585]
[1748124742450,1.2883,2532.7,2532.6,17.5059373]
[1748124742654,3.21372827,2532.9,2532.8,0.78933]
[1748124742853,3.21372827,2532.9,2532.8,1.3558773]
[1748124743647,0.00592827,2532.9,2532.8,1.3558773]
[1748124744449,0.00592827,2532.9,2532.8,1.35567016]
[1748124746151,0.79522827,2532.9,2532.8,1.35567016]
[1748124746345,0.79522827,2532.9,2532.8,1.35558507]
[1748124748044,0.00592827,2532.9,2532.8,1.35558507]
[1748124748250,7.21052827,2532.9,2532.8,0.56625507]
[1748124748550,2.21052827,2532.9,2532.8,0.56625507]
[1748124750152,0.78939,2532.6,2532.5,16.13]
[1748124750345,0.78939,2532.6,2532.5,16.69659753]
[1748124752151,1.3561,2532.7,2532.6,0.78939]
[1748124752353,0.00592827,2532.9,2532.8,0.78933]
[1748124752651,0.00592827,2532.9,2532.8,1.35592753]
[1748124753049,1.37902827,2532.9,2532.8,2.72022753]
[1748124753853,1.37902827,2532.9,2532.8,2.72088516]
[1748124754947,0.00592827,2532.9,2532.8,2.72088516]
[1748124755849,0.00592827,2532.9,2532.8,2.72152532]
[1748124756454,0.00592827,2532.9,2532.8,6.21403653]
[1748124756655,2.3416579,2533.4,2533.3,0.78917]
[1748124756855,2.3416579,2533.4,2533.3,17.48706532]
[1748124757557,2.3416579,2533.4,2533.3,17.77273308]
[1748124757761,5.42691827,2533.6,2533.3,18.29926308]
[1748124757953,5.42691827,2533.6,2533.5,0.78911]
[1748124758246,5.42691827,2533.6,2533.5,1.35779343]
[1748124759466,5.42691827,2533.6,2533.5,1.35786016]
[1748124760464,10.42691827,2533.6,2533.5,0.56875016]
[1748124761161,12.76857617,2533.6,2533.5,0.56875016]
[1748124762364,10.42691827,2533.6,2533.5,0.56875016]
[1748124764357,10.73191827,2533.6,2533.5,1.6e-07]
[1748124764663,0.78936,2532.7,2532.6,16.128]
[1748124764850,3.99714,2532.8,2532.7,0.78936]
[1748124765759,3.2078,2532.8,2532.7,0.78936]
[1748124765961,3.2078,2532.8,2532.7,3.06647411]
[1748124768166,1.3644,2533.0,2532.9,0.7893]
[1748124769171,2.15367,2533.0,2532.9,0.7893]
[1748124769670,3.14097721,2533.1,2533.0,0.78927]
[1748124769969,2.35172721,2533.1,2533.0,19.00297]
[1748124770159,0.78924,2533.1,2533.0,19.00297]
[1748124770364,0.78924,2533.1,2533.0,19.28800471]
[1748124770970,1.3124,2533.2,2533.1,0.78924]
[1748124771172,5.55952721,2533.3,2533.2,0.7892]
[1748124771770,3.2078,2533.3,2533.2,0.7892]
[1748124771965,0.78921,2533.2,2533.1,0.78921]
[1748124772160,0.78921,2533.2,2533.1,1.07424284]
[1748124772670,0.78921,2533.2,2533.1,1.0742478]
[1748124774169,0.78921,2533.2,2533.1,1.7545478]
[1748124774572,0.78921,2533.2,2533.1,1.75453183]
[1748124774770,3.2078,2533.3,2533.2,0.7892]
[1748124774967,3.2078,2533.3,2533.2,2.127]
[1748124775367,3.2078,2533.3,2533.2,16.109]
[1748124775571,5.33277,2533.3,2533.2,16.109]
[1748124776674,5.33277,2533.3,2533.2,16.67009308]
[1748124776872,10.33277,2533.3,2533.2,0.56109308]
[1748124777078,0.78933,2532.8,2532.5,2.7524]
[1748124777270,0.78933,2532.8,2532.7,19.60182381]
[1748124778177,0.78933,2532.8,2532.5,2.7524]
[1748124778178,0.78939,2532.6,2532.5,2.7524]
[1748124778377,0.78939,2532.6,2532.5,16.39405365]
[1748124778777,2.09509,2532.6,2532.5,16.39405365]
[1748124779277,2.09509,2532.6,2532.5,17.18346365]
[1748124779679,1.3057,2532.6,2532.5,17.18346365]
[1748124780181,1.3057,2532.6,2532.5,17.18353965]
[1748124780683,2.09509,2532.6,2532.5,17.18353965]
[1748124780980,2.09509,2532.6,2532.5,16.39412965]
[1748124781383,2.09509,2532.6,2532.5,16.39423108]
[1748124781680,1.3057,2532.6,2532.5,17.18365108]
[1748124781982,1.3057,2532.6,2532.5,16.89842]
[1748124782181,1.3057,2532.6,2532.5,17.18365102]
[1748124782371,1.3057,2532.6,2532.5,1.07465102]
[1748124782575,1.3057,2532.6,2532.5,17.18465102]
[1748124782779,2.09509,2532.6,2532.5,17.18465102]
[1748124782978,2.09509,2532.6,2532.5,16.39523102]
[1748124783181,2.09509,2532.6,2532.5,16.11]
[1748124784179,2.09509,2532.6,2532.5,16.89942]
[1748124784580,0.78942,2532.5,2532.4,0.00592827]
[1748124784786,2.78002,2532.5,2532.4,0.00592827]
[1748124785686,2.78002,2532.5,2532.4,0.79537827]
[1748124786283,2.78002,2532.5,2532.4,0.00592827]
[1748124788990,2.78002,2532.5,2532.4,0.55922167]
[1748124789691,2.78002,2532.5,2532.4,0.55928887]
[1748124790791,2.78002,2532.5,2532.4,1.34873887]
[1748124790992,2.78002,2532.5,2532.4,0.55928887]
[1748124791591,2.78002,2532.5,2532.4,0.55935329]
[1748124795394,2.78002,2532.5,2532.4,0.55938005]
[1748124795694,2.78002,2532.5,2532.4,1.34883005]
[1748124795888,6.21552721,2532.7,2532.6,0.78939]
[1748124796089,5.55952721,2532.7,2532.6,17.45584178]
[1748124796292,2.35172721,2532.7,2532.6,22.74093545]
[1748124796792,2.16954,2533.1,2533.0,0.78927]
[1748124796994,2.16954,2533.1,2533.0,17.74077118]
[1748124797187,2.16954,2533.1,2533.0,16.90227]
[1748124797390,2.16954,2533.1,2533.0,17.74052069]
[1748124797594,2.16954,2533.1,2533.0,17.45548365]
[1748124798395,1.3803,2533.1,2533.0,17.45548365]
[1748124798991,2.16954,2533.1,2533.0,17.45548365]
[1748124799195,2.16954,2533.1,2533.0,17.45539193]
[1748124799394,2.16954,2533.1,2533.0,16.66612193]
[1748124799893,2.16954,2533.1,2533.0,19.40442193]
[1748124800996,2.16954,2533.1,2533.0,19.40439899]
[1748124802896,2.16954,2533.1,2533.0,19.40450339]
[1748124804497,2.35172721,2533.2,2533.1,0.78924]
[1748124804688,3.14092721,2533.2,2533.1,1.34244339]
[1748124804999,3.14092721,2533.2,2533.1,1.62751736]
[1748124805800,0.7892,2533.2,2533.1,0.83827736]
[1748124805999,0.7892,2533.2,2533.1,1.62751736]
[1748124806299,3.99697,2533.3,2533.2,0.7892]
[1748124806499,3.2078,2533.3,2533.2,2.67640339]
[1748124806700,3.2078,2533.3,2533.2,2.67638476]
[1748124806895,3.99697,2533.3,2533.2,2.67638476]
[1748124809100,0.78917,2533.3,2533.2,2.67638476]
[1748124810302,0.78917,2533.3,2533.2,1.88718476]
[1748124810498,0.78917,2533.3,2533.2,1.88684937]
[1748124811303,3.99697,2533.3,2533.2,0.55284937]
[1748124812101,5.35967,2533.3,2533.2,0.55284937]
[1748124812403,7.71139721,2533.3,2533.2,0.55284937]
[1748124813298,12.71139721,2533.3,2533.2,9.37e-06]
[1748124814006,0.7893,2532.9,2532.8,16.089]
[1748124814201,21.7611,2532.9,2532.8,16.089]
[1748124819399,18.5533,2532.9,2532.8,16.089]
[1748124819600,21.7611,2532.9,2532.8,16.089]
[1748124819803,23.8614,2532.9,2532.8,16.089]
[1748124820906,1.97333,2532.8,2532.4,0.00592827]
[1748124821098,1.97364,2532.4,2531.7,2.2785148]
[1748124821304,0.78964,2531.8,2531.7,2.2785148]
[1748124821505,3.2078,2531.9,2531.8,0.78964]
[1748124821812,18.55558,2532.0,2531.8,2.17362]
[1748124822007,18.55558,2532.0,2531.8,1.384]
[1748124822008,0.78961,2531.9,2531.8,1.384]
[1748124822404,2.08521,2531.9,2531.8,1.384]
[1748124824616,4.5034,2531.9,2531.6,0.00592827]
[1748124824813,0.714,2531.8,2531.6,0.00592827]
[1748124825110,3.99742,2531.9,2531.8,0.78964]
[1748124825509,3.2078,2531.9,2531.8,0.78964]
[1748124825710,17.766,2532.0,2531.6,1.42522827]
[1748124825909,0.78962,2531.9,2531.8,0.78963]
[1748124828917,2.119,2532.1,2531.6,1.42522827]
[1748124829109,0.78967,2531.8,2531.7,0.78967]
[1748124832211,0.78963,2531.9,2531.8,0.78962]
[1748124832417,2.7653,2532.1,2531.9,0.7896]
[1748124832418,0.7896,2532.0,2531.9,0.7896]
[1748124832611,2.1541,2532.0,2531.9,16.096]
[1748124834815,0.78967,2531.7,2531.6,16.07892827]
[1748124835116,0.78967,2531.7,2531.6,0.00592827]
[1748124835815,1.49767,2531.7,2531.6,0.00592827]
[1748124839109,2.35192855,2531.9,2531.8,0.78964]
[1748124839318,2.35192855,2531.9,2531.7,1.4173]
[1748124839615,3.14154855,2531.9,2531.8,16.86364]
[1748124839815,3.14154855,2531.9,2531.8,17.52314]
[1748124840117,0.78962,2531.9,2531.8,16.7335]
[1748124840507,0.78962,2531.9,2531.8,18.86644]
[1748124841322,0.78962,2531.9,2531.8,18.0768]
[1748124842420,0.78962,2531.9,2531.8,18.86644]
[1748124842722,2.35785682,2532.2,2532.1,0.78955]
[1748124843622,0.00592827,2532.2,2532.1,0.78955]
[1748124846123,0.00592827,2532.2,2532.1,8.99735]
[1748124846429,2.35192855,2532.6,2532.5,0.78942]
[1748124846625,2.35192855,2532.6,2532.5,16.86242]
[1748124847124,6.34766554,2532.8,2532.6,0.78937]
[1748124847125,0.78936,2532.7,2532.6,0.78937]
[1748124847323,0.78936,2532.7,2532.6,0.7134]
[1748124847625,0.78936,2532.7,2532.6,2.1029]
[1748124847822,0.78936,2532.7,2532.6,2.89229]
[1748124848629,0.78936,2532.7,2532.6,2.1029]
[1748124849925,2.18416,2532.7,2532.6,2.1029]
[1748124850625,2.18416,2532.7,2532.6,2.89229]
[1748124850827,2.18416,2532.7,2532.6,2.1029]
[1748124851423,2.18416,2532.7,2532.6,2.89229]
[1748124854225,1.3948,2532.7,2532.6,2.89229]
[1748124855227,2.18416,2532.7,2532.6,2.89229]
[1748124855430,0.00592827,2532.8,2532.7,0.78936]
[1748124855632,0.00592827,2532.8,2532.7,1.49466]
[1748124856521,0.79525827,2532.8,2532.7,1.49466]
[1748124857029,0.00592827,2532.8,2532.7,1.49466]
[1748124857635,3.2078,2533.1,2533.0,0.78927]
[1748124857835,3.2078,2533.1,2533.0,16.85927]
[1748124858331,2.35192855,2533.3,2533.2,0.7892]
[1748124858922,2.35192855,2533.3,2533.2,1.4953]
[1748124859126,0.78909,2533.6,2533.5,0.78909]
[1748124859332,0.78909,2533.6,2533.5,16.069]
[1748124863739,0.78909,2533.6,2533.5,16.85811]
[1748124864138,0.78909,2533.6,2533.5,16.069]
[1748124866840,0.78909,2533.6,2533.5,16.85811]
[1748124867038,1.3082,2533.7,2533.5,16.069]
[1748124867241,0.78908,2533.6,2533.5,16.85809]
[1748124870140,0.78908,2533.6,2533.5,16.069]
[1748124870441,0.78917,2533.3,2533.2,1.49528]
[1748124870636,0.78916,2533.4,2533.3,0.78916]
[1748124871446,3.8872,2533.8,2533.6,0.78907]
[1748124871746,0.78907,2533.7,2533.6,16.82907]
[1748124871947,5.97594,2533.8,2533.7,0.78905]
[1748124872246,0.78905,2533.7,2533.6,16.82906]
[1748124872437,2.08875,2533.7,2533.6,16.82906]
[1748124876347,1.2997,2533.7,2533.6,16.82906]
[1748124876647,2.08875,2533.7,2533.6,16.82906]
[1748124877147,2.08875,2533.7,2533.6,16.04]
[1748124877749,1.2997,2533.7,2533.6,16.82908]
[1748124877950,3.2078,2533.8,2533.7,0.78905]
[1748124878150,3.2078,2533.8,2533.7,2.77175]
[1748124878350,3.14092855,2533.9,2533.8,0.78902]
[1748124878551,4.46242855,2533.9,2533.8,2.12752]
[1748124879546,2.1105,2533.9,2533.8,2.12752]
[1748124881155,2.1105,2533.9,2533.8,1.3385]
[1748124881550,0.78902,2533.8,2533.7,1.346]
[1748124881753,2.21352,2533.8,2533.7,1.346]
[1748124882158,2.21352,2533.8,2533.7,2.13505]
[1748124882359,2.21352,2533.8,2533.7,1.346]
[1748124882659,2.21352,2533.8,2533.7,2.13505]
[1748124883563,1.4245,2533.8,2533.7,2.13505]
[1748124883859,2.35192855,2533.9,2533.8,0.78902]
[1748124884059,2.35192855,2533.9,2533.8,2.15032]
[1748124884863,3.14082855,2534.2,2534.1,0.78892]
[1748124885057,3.14082855,2534.2,2534.1,16.82592]
[1748124885259,2.35192855,2534.2,2534.1,16.82592]
[1748124886062,2.35192855,2534.3,2534.2,0.78889]
[1748124886263,2.35192855,2534.3,2534.2,2.90059]
[1748124886654,2.35192855,2534.3,2534.2,3.45459485]
[1748124887060,2.35192855,2534.3,2534.2,3.4551707]
[1748124887357,0.78883,2534.4,2534.3,0.78886]
[1748124887550,0.78883,2534.4,2534.3,2.7471407]
[1748124887748,2.35192855,2534.5,2534.4,0.78883]
[1748124887962,2.35192855,2534.5,2534.4,2.7471107]
[1748124888368,2.35192855,2534.5,2534.4,1.9582807]
[1748124888566,3.14072855,2534.5,2534.4,0.5545807]
[1748124888762,3.83772855,2534.5,2534.4,0.5545807]
[1748124888961,1.4858,2534.5,2534.4,0.55422938]
[1748124889266,0.697,2534.5,2534.4,1.34305938]
[1748124889459,1.4858,2534.5,2534.4,1.34305938]
[1748124889661,2.8789,2534.5,2534.4,1.34305938]
[1748124890970,2.1819,2534.5,2534.4,1.34305938]
[1748124891468,1.3931,2534.5,2534.4,1.34305938]
[1748124892661,2.1819,2534.5,2534.4,1.3423981]
[1748124893369,1.3931,2534.5,2534.4,1.3423981]
[1748124894273,2.1819,2534.5,2534.4,1.3423981]
[1748124896171,2.1819,2534.5,2534.4,17.3463981]
[1748124896470,2.1819,2534.5,2534.4,17.34620003]
[1748124897163,3.8536,2534.7,2534.6,0.78877]
[1748124897368,4.5776,2534.7,2534.6,1.34214003]
[1748124898170,3.2078,2534.7,2534.6,1.34214003]
[1748124898469,3.77382855,2534.9,2534.8,0.78871]
[1748124898772,5.55972855,2535.0,2534.9,0.78868]
[1748124898973,5.55972855,2535.0,2534.9,2.68988519]
[1748124899271,5.55972855,2535.0,2534.9,3.34648519]
[1748124899865,3.2078,2535.0,2534.9,3.34648519]
[1748124900159,3.2078,2535.0,2534.9,2.79318]
[1748124900360,3.99644,2535.0,2534.9,3.34619163]
[1748124900573,3.99644,2535.0,2534.9,16.55501163]
[1748124901470,3.99644,2535.0,2534.9,0.55301163]
[1748124901674,0.7888,2534.5,2534.4,0.00592827]
[1748124901975,0.7888,2534.5,2534.4,16.00792827]
[1748124902768,1.4468,2534.5,2534.4,16.00792827]
[1748124906972,1.4468,2534.5,2534.4,0.00592827]
[1748124907373,2.8676,2534.5,2534.4,0.00592827]
[1748124908175,5.21952855,2534.5,2534.4,0.00592827]
[1748124909373,2.8676,2534.5,2534.4,0.00592827]
[1748124912172,5.22598031,2534.5,2534.4,0.00592827]
[1748124912575,5.22598031,2534.5,2534.4,0.79475827]
[1748124913075,5.22598031,2534.5,2534.4,0.00592827]
[1748124913370,4.43718031,2534.5,2534.4,0.79475827]
[1748124913574,3.77918031,2534.5,2534.4,2.92655827]
[1748124915379,2.35838031,2534.5,2534.4,2.92655827]
[1748124916683,2.35838031,2534.7,2534.6,0.78877]
[1748124916870,2.35838031,2534.7,2534.6,16.79177]
[1748124917277,2.35838031,2534.7,2534.6,18.18807]
[1748124917984,2.35838031,2534.9,2534.8,0.78871]
[1748124918672,2.35838031,2534.9,2534.8,2.18501]
[1748124919179,3.2078,2535.0,2534.9,0.78867]
[1748124919376,3.2078,2535.0,2534.9,2.76267]
[1748124923991,3.99644,2535.0,2534.9,2.76267]
[1748124924392,3.99644,2535.0,2534.9,1.974]
[1748124924595,3.99644,2535.0,2534.9,2.76268]
[1748124926192,0.78871,2534.8,2534.7,1.47021]
[1748124926392,0.78871,2534.8,2534.7,17.44321]
[1748124926990,2.10409,2534.9,2534.8,0.78871]
[1748124927199,0.78871,2534.8,2534.7,18.78071]
[1748124930095,1.3154,2534.9,2534.8,0.78871]
[1748124930492,3.2078,2535.0,2534.9,0.78867]
[1748124930897,3.14701031,2535.1,2535.0,0.78864]
[1748124931101,0.78863,2535.1,2535.0,0.78864]
[1748124931291,0.78867,2535.0,2534.9,0.78866]
[1748124932097,0.78867,2534.9,2534.8,2.18569]
[1748124932899,0.78866,2535.0,2534.9,0.78865]
[1748124933292,3.14701031,2535.1,2535.0,0.78864]
[1748124934191,0.78863,2535.1,2535.0,0.78864]
[1748124934699,0.78863,2535.1,2535.0,16.76064]
[1748124936002,3.14701031,2535.1,2535.0,16.76064]
[1748124936595,2.35838031,2535.1,2535.0,16.76064]
[1748124937401,0.78861,2535.1,2535.0,16.76064]
[1748124938596,2.35838031,2535.1,2535.0,16.76064]
[1748124938904,3.14699031,2535.1,2535.0,16.76064]
[1748124940105,3.14699031,2535.1,2535.0,15.972]
[1748124940307,3.14699031,2535.1,2535.0,16.76064]
[1748124941208,3.14699031,2535.1,2535.0,15.972]
[1748124941406,0.78861,2535.1,2535.0,15.972]
[1748124942306,0.7886,2535.2,2535.0,15.972]
[1748124942508,0.7886,2535.2,2535.1,0.78859]
[1748124942807,3.92846554,2535.2,2535.1,0.78859]
[1748124943007,0.78861,2535.1,2535.0,16.76062]
[1748124944208,0.79580015,2535.1,2535.0,16.76062]
[1748124945511,2.09160015,2535.1,2535.0,16.76062]
[1748124946504,1.30299015,2535.1,2534.6,1.48416]
[1748124946710,0.78877,2534.7,2534.6,15.972]
[1748124947009,0.78877,2534.7,2534.6,16.76077]
[1748124948212,2.16963,2534.8,2534.7,0.78874]
[1748124948411,1.3809,2534.8,2534.7,0.78874]
[1748124949512,24.09966554,2535.0,2534.9,0.78867]
[1748124949811,23.09594,2535.0,2534.9,0.78867]
[1748124950011,23.09594,2535.0,2534.9,1.34020318]
[1748124950612,23.09594,2535.0,2534.9,0.55153318]
[1748124951010,23.09594,2535.0,2534.9,1.34021318]
[1748124951211,23.09594,2535.0,2534.9,1.34037311]
[1748124952915,5.34394,2535.0,2534.9,1.34037311]
[1748124953107,5.34394,2535.0,2534.9,1.34036177]
[1748124955407,5.34394,2535.0,2534.9,2.75076177]
[1748124956115,2.13614,2535.0,2534.9,2.75076177]
[1748124956917,2.13614,2535.0,2534.9,2.75076189]
[1748124959913,5.34394,2535.0,2534.9,1.96208189]
[1748124960516,5.34394,2535.0,2534.9,2.75075189]
[1748124960704,5.34394,2535.0,2534.9,1.96207034]
[1748124961420,5.34394,2535.0,2534.9,2.75075034]
[1748124963519,3.2078,2535.0,2534.9,2.75075034]
[1748124963920,3.14705569,2535.1,2535.0,0.78864]
[1748124964129,3.14705569,2535.1,2535.0,2.69521034]
[1748124964327,0.00719015,2535.1,2535.0,2.99552648]
[1748124964524,0.00719015,2535.1,2535.0,2.99549658]
[1748124966528,0.00719015,2535.1,2535.0,2.99658805]
[1748124968327,0.00719015,2535.1,2535.0,2.9957877]
[1748124969119,0.00719015,2535.1,2535.0,18.1471477]
[1748124969120,0.79580015,2535.1,2535.0,18.1471477]
[1748124969329,4.00360015,2535.1,2535.0,18.9357877]
[1748124969519,4.00360015,2535.1,2535.0,18.14710516]
[1748124969718,5.37250015,2535.1,2535.0,18.14710516]
[1748124970029,5.37250015,2535.1,2535.0,18.93574516]
[1748124970229,5.37250015,2535.1,2535.0,18.14710516]
[1748124971127,7.73580977,2535.1,2535.0,18.14710516]
[1748124971328,7.73580977,2535.1,2535.0,16.79220516]
[1748124972028,7.73580977,2535.1,2535.0,16.49097839]
[1748124972230,7.73580977,2535.1,2535.0,16.79222489]
[1748124972731,7.73580977,2535.1,2535.0,0.85222489]
[1748124973133,7.73580977,2535.1,2535.0,16.79222489]
[1748124973435,5.37250015,2535.1,2535.0,16.79222489]
[1748124975733,7.73440117,2535.1,2535.0,16.79222489]
[1748124975934,7.73440117,2535.1,2535.0,16.79228337]
[1748124976327,4.52660117,2535.1,2535.0,16.79228337]
[1748124976732,4.52660117,2535.1,2535.0,17.58092337]
[1748124977832,4.52660117,2535.1,2535.0,17.58098483]
[1748124978033,3.73799117,2535.1,2535.0,17.58098483]
[1748124978537,2.36909117,2535.1,2535.0,17.58098483]
[1748124979936,2.36909117,2535.1,2535.0,18.90058483]
[1748124980240,0.00719015,2535.1,2535.0,18.90058483]
[1748124983439,0.00719015,2535.1,2535.0,18.90050179]
[1748124985339,0.00719015,2535.1,2535.0,18.90043485]
[1748124987336,0.00719015,2535.1,2535.0,18.90045637]
[1748124988333,2.36190102,2535.3,2535.2,0.78858]
[1748124988642,5.56970102,2535.5,2535.4,0.78852]
[1748124988841,6.35819102,2535.5,2535.4,17.54573637]
[1748124989040,5.56970102,2535.5,2535.4,17.54573637]
[1748124989236,5.56970102,2535.5,2535.4,18.8438361]
[1748124989434,1.3874,2535.6,2535.5,0.78849]
[1748124989435,2.36190102,2535.6,2535.5,0.78849]
[1748124989642,2.36190102,2535.6,2535.5,2.9388061]
[1748124990750,4.54035102,2535.7,2535.6,0.78846]
[1748124990943,4.54035102,2535.7,2535.6,1.6403761]
[1748124991149,4.54035102,2535.7,2535.6,1.63996641]
[1748124991740,3.75190102,2535.7,2535.6,1.63996641]
[1748124992139,4.54033102,2535.7,2535.6,1.63996641]
[1748124992849,4.54033102,2535.7,2535.6,1.63967137]
[1748124993748,3.75190102,2535.7,2535.6,1.63967137]
[1748124993951,1.39,2535.7,2535.6,1.63967137]
[1748124994639,2.17843,2535.7,2535.6,1.63967137]
[1748124994839,2.17843,2535.7,2535.6,1.63958694]
[1748124995047,1.39,2535.7,2535.6,1.63958694]
[1748124995248,2.17843,2535.7,2535.6,1.63958694]
[1748124995947,1.39,2535.7,2535.6,1.63958694]
[1748124996739,1.39,2535.7,2535.6,1.63934802]
[1748124998146,2.17843,2535.7,2535.6,1.63934802]
[1748124998546,2.17843,2535.7,2535.6,1.63908935]
[1748124999555,2.17843,2535.7,2535.6,0.85062935]
[1748124999853,2.17843,2535.7,2535.6,0.55001074]
[1748125000046,2.17843,2535.7,2535.6,16.45301074]
[1748125002352,2.17843,2535.7,2535.6,16.45304838]
[1748125004058,4.54033102,2535.7,2535.6,16.45304838]
[1748125004252,4.54033102,2535.7,2535.6,16.45315432]
[1748125006063,4.54033102,2535.7,2535.6,16.45325914]
[1748125007267,3.75190102,2535.7,2535.6,17.24171914]
[1748125007562,3.75190102,2535.7,2535.6,17.54257553]
[1748125007763,4.54033102,2535.7,2535.6,17.54257553]
[1748125007963,4.54033102,2535.7,2535.6,17.54273039]
[1748125008366,4.54033102,2535.7,2535.6,16.75427039]
[1748125009967,4.54033102,2535.7,2535.6,16.75438641]
[1748125011769,4.54033102,2535.7,2535.6,16.75494599]
[1748125012765,4.54033102,2535.7,2535.6,17.54340599]
[1748125012964,4.54033102,2535.7,2535.6,16.75494599]
[1748125013672,4.54033102,2535.7,2535.6,16.75522873]